[Event "Titled Tuesday Blitz July 18 Early 2023"]
[White "Dubreuil, Julien"]
[Black "Topalov, Aleksandar"]
[WhiteFideId "621285"]
[BlackFideId "925659"]
[WhiteElo "2356"]
[BlackElo "2360"]
[Result "0-1"]
[Round "8"]
[TimeControl "180+2"]
[Date "2023.07.18"]
[WhiteClock "0:00:57"]
[BlackClock "0:00:53"]
[Board "146"]

1. c4 {[%clk 0:03:00]}  Nf6 {[%clk 0:02:57]} 2. g3 {[%clk 0:03:01]}  g6 {[%clk 0:02:57]} 3. Bg2 {[%clk 0:03:01]}  Bg7 {[%clk 0:02:57]} 4. Nc3 {[%clk 0:03:01]}  O-O {[%clk 0:02:58]} 5. e4 {[%clk 0:03:01]}  c5 {[%clk 0:02:58]} 6. Nge2 {[%clk 0:03:01]}  d6 {[%clk 0:02:57]} 7. d3 {[%clk 0:03:02]}  Nc6 {[%clk 0:02:57]} 8. h3 {[%clk 0:03:00]}  a6 {[%clk 0:02:58]} 9. O-O {[%clk 0:02:57]}  Rb8 {[%clk 0:02:58]} 10. a4 {[%clk 0:02:57]}  Ne8 {[%clk 0:02:51]} 11. Rb1 {[%clk 0:02:56]}  Nc7 {[%clk 0:02:51]} 12. Be3 {[%clk 0:02:54]}  b5 {[%clk 0:02:50]} 13. cxb5 {[%clk 0:02:53]}  axb5 {[%clk 0:02:50]} 14. axb5 {[%clk 0:02:54]}  Nxb5 {[%clk 0:02:50]} 15. Nxb5 {[%clk 0:02:53]}  Rxb5 {[%clk 0:02:50]} 16. d4 {[%clk 0:02:53]}  cxd4 {[%clk 0:02:46]} 17. Nxd4 {[%clk 0:02:53]}  Nxd4 {[%clk 0:02:46]} 18. Bxd4 {[%clk 0:02:54]}  Bxd4 {[%clk 0:02:47]} 19. Qxd4 {[%clk 0:02:53]}  Be6 {[%clk 0:02:40]} 20. b4 {[%clk 0:02:51]}  Qb8 {[%clk 0:02:25]} 21. h4 {[%clk 0:02:43]}  Rc8 {[%clk 0:02:17]} 22. Rfd1 {[%clk 0:01:50]}  Rc4 {[%clk 0:02:15]} 23. Qa1 {[%clk 0:01:49]}  Rcxb4 {[%clk 0:02:14]} 24. Rbc1 {[%clk 0:01:48]}  Rb2 {[%clk 0:02:10]} 25. h5 {[%clk 0:01:34]}  Rxh5 {[%clk 0:02:08]} 26. Rb1 {[%clk 0:01:30]}  Rhb5 {[%clk 0:02:06]} 27. Rxb2 {[%clk 0:01:29]}  Rxb2 {[%clk 0:02:06]} 28. Qa3 {[%clk 0:01:17]}  Qb6 {[%clk 0:02:00]} 29. Qf3 {[%clk 0:01:17]}  h5 {[%clk 0:01:45]} 30. Ra1 {[%clk 0:01:13]}  Rb1+ {[%clk 0:01:37]} 31. Rxb1 {[%clk 0:01:13]}  Qxb1+ {[%clk 0:01:37]} 32. Kh2 {[%clk 0:01:14]}  Qb2 {[%clk 0:01:29]} 33. Qe3 {[%clk 0:01:13]}  Kg7 {[%clk 0:01:26]} 34. Kg1 {[%clk 0:01:10]}  Bg4 {[%clk 0:01:21]} 35. Kh2 {[%clk 0:01:10]}  Qe5 {[%clk 0:01:16]} 36. f4 {[%clk 0:01:08]}  Qb2 {[%clk 0:01:14]} 37. e5 {[%clk 0:01:06]}  dxe5 {[%clk 0:01:09]} 38. fxe5 {[%clk 0:01:06]}  Qe2 {[%clk 0:01:06]} 39. Qd4 {[%clk 0:01:02]}  Bf3 {[%clk 0:00:53]} 40. e6+ {[%clk 0:01:01]}  f6 {[%clk 0:00:53]} 41. Qg1 {[%clk 0:01:00]}  Qxg2+ {[%clk 0:00:52]} 42. Qxg2 {[%clk 0:00:57]}  Bxg2 {[%clk 0:00:53]} 0-1


[Site "https://www.chess.com"]

[Event "Titled Tuesday Blitz July 18 Early 2023"]
[White "EdmundPlayer"]
[Black "Filgueira, Hernan"]
[BlackFideId "101770"]
[WhiteElo "2302"]
[BlackElo "2563"]
[Result "0-1"]
[Round "8"]
[TimeControl "180+2"]
[Date "2023.07.18"]
[WhiteClock "0:00:00"]
[BlackClock "0:01:22"]
[Board "148"]

1. e4 {[%clk 0:03:00]}  d5 {[%clk 0:02:59]} 2. exd5 {[%clk 0:03:00]}  Qxd5 {[%clk 0:03:00]} 3. Nc3 {[%clk 0:03:00]}  Qd6 {[%clk 0:03:00]} 4. d4 {[%clk 0:02:59]}  c6 {[%clk 0:03:00]} 5. Nf3 {[%clk 0:02:54]}  Nf6 {[%clk 0:03:00]} 6. g3 {[%clk 0:02:52]}  Bf5 {[%clk 0:02:59]} 7. Bf4 {[%clk 0:02:51]}  Qb4 {[%clk 0:02:58]} 8. Bd3 {[%clk 0:02:19]}  Bg6 {[%clk 0:02:48]} 9. Bxg6 {[%clk 0:01:52]}  hxg6 {[%clk 0:02:44]} 10. Qd2 {[%clk 0:01:39]}  e6 {[%clk 0:02:41]} 11. O-O-O {[%clk 0:01:28]}  Nbd7 {[%clk 0:02:39]} 12. Kb1 {[%clk 0:01:17]}  Qa5 {[%clk 0:02:33]} 13. Qd3 {[%clk 0:01:09]}  Bb4 {[%clk 0:02:26]} 14. Ne4 {[%clk 0:01:04]}  Nxe4 {[%clk 0:02:22]} 15. Qxe4 {[%clk 0:01:05]}  Qf5 {[%clk 0:02:21]} 16. Qxf5 {[%clk 0:01:02]}  gxf5 {[%clk 0:02:21]} 17. c3 {[%clk 0:01:02]}  Be7 {[%clk 0:02:20]} 18. c4 {[%clk 0:01:00]}  Nb6 {[%clk 0:02:19]} 19. b3 {[%clk 0:00:57]}  Rd8 {[%clk 0:02:16]} 20. Rd3 {[%clk 0:00:45]}  f6 {[%clk 0:02:16]} 21. Rhd1 {[%clk 0:00:44]}  g5 {[%clk 0:02:15]} 22. Bc1 {[%clk 0:00:40]}  Kf7 {[%clk 0:02:15]} 23. a4 {[%clk 0:00:37]}  Rd7 {[%clk 0:02:13]} 24. a5 {[%clk 0:00:36]}  Nc8 {[%clk 0:02:13]} 25. d5 {[%clk 0:00:30]}  cxd5 {[%clk 0:02:12]} 26. cxd5 {[%clk 0:00:31]}  e5 {[%clk 0:02:12]} 27. Bb2 {[%clk 0:00:15]}  Bd6 {[%clk 0:02:02]} 28. R3d2 {[%clk 0:00:13]}  Re8 {[%clk 0:01:54]} 29. h4 {[%clk 0:00:13]}  g4 {[%clk 0:01:54]} 30. Ne1 {[%clk 0:00:13]}  Bb4 {[%clk 0:01:53]} 31. Rc2 {[%clk 0:00:12]}  Bxa5 {[%clk 0:01:52]} 32. Ng2 {[%clk 0:00:07]}  Bb6 {[%clk 0:01:51]} 33. Ba3 {[%clk 0:00:06]}  Red8 {[%clk 0:01:47]} 34. Rcd2 {[%clk 0:00:06]}  Bd4 {[%clk 0:01:42]} 35. Ne3 {[%clk 0:00:05]}  Bxe3 {[%clk 0:01:42]} 36. fxe3 {[%clk 0:00:05]}  Nb6 {[%clk 0:01:42]} 37. d6 {[%clk 0:00:05]}  Ke6 {[%clk 0:01:41]} 38. Bc5 {[%clk 0:00:05]}  Nc8 {[%clk 0:01:41]} 39. Kb2 {[%clk 0:00:04]}  b6 {[%clk 0:01:41]} 40. Bb4 {[%clk 0:00:04]}  Nxd6 {[%clk 0:01:41]} 41. Rc2 {[%clk 0:00:03]}  Ne4 {[%clk 0:01:40]} 42. Rc6+ {[%clk 0:00:03]}  Kf7 {[%clk 0:01:39]} 43. Rdc1 {[%clk 0:00:02]}  Nxg3 {[%clk 0:01:31]} 44. Rg1 {[%clk 0:00:02]}  Nh5 {[%clk 0:01:29]} 45. Rgc1 {[%clk 0:00:02]}  g3 {[%clk 0:01:29]} 46. Rc7 {[%clk 0:00:02]}  f4 {[%clk 0:01:26]} 47. Ka3 {[%clk 0:00:02]}  f3 {[%clk 0:01:26]} 48. e4 {[%clk 0:00:02]}  f2 {[%clk 0:01:25]} 49. Rxd7+ {[%clk 0:00:02]}  Rxd7 {[%clk 0:01:25]} 50. Rc8 {[%clk 0:00:03]}  g2 {[%clk 0:01:22]} 51. Rf8+ {[%clk 0:00:00]}  Kg7 {[%clk 0:01:22]} 0-1


[Site "https://www.chess.com"]

[Event "Titled Tuesday Blitz July 18 Early 2023"]
[White "Liu, Casper"]
[Black "Wang, Alexander J"]
[WhiteFideId "1454153"]
[BlackFideId "30955270"]
[WhiteElo "2443"]
[BlackElo "2292"]
[Result "1-0"]
[Round "8"]
[TimeControl "180+2"]
[Date "2023.07.18"]
[WhiteClock "0:00:15"]
[BlackClock "0:00:14"]
[Board "150"]

1. e4 {[%clk 0:03:00]}  c5 {[%clk 0:02:16]} 2. d4 {[%clk 0:03:00]}  cxd4 {[%clk 0:02:16]} 3. Qxd4 {[%clk 0:03:01]}  Nc6 {[%clk 0:02:16]} 4. Qe3 {[%clk 0:03:02]}  d6 {[%clk 0:02:15]} 5. Nc3 {[%clk 0:03:02]}  Nf6 {[%clk 0:02:15]} 6. Bd2 {[%clk 0:03:03]}  g6 {[%clk 0:02:16]} 7. O-O-O {[%clk 0:03:03]}  Bg7 {[%clk 0:02:16]} 8. h4 {[%clk 0:03:04]}  h5 {[%clk 0:02:16]} 9. f3 {[%clk 0:03:03]}  O-O {[%clk 0:02:14]} 10. Nd5 {[%clk 0:02:56]}  Nxd5 {[%clk 0:02:14]} 11. exd5 {[%clk 0:02:55]}  Ne5 {[%clk 0:02:13]} 12. g4 {[%clk 0:02:52]}  hxg4 {[%clk 0:02:13]} 13. h5 {[%clk 0:02:52]}  Bf5 {[%clk 0:02:07]} 14. Bc3 {[%clk 0:02:45]}  Rc8 {[%clk 0:02:04]} 15. Rd2 {[%clk 0:02:32]}  Qb6 {[%clk 0:01:56]} 16. Bd4 {[%clk 0:02:12]}  Qa5 {[%clk 0:01:45]} 17. a3 {[%clk 0:01:31]}  gxf3 {[%clk 0:01:29]} 18. Nxf3 {[%clk 0:01:24]}  Nxf3 {[%clk 0:01:26]} 19. Qxf3 {[%clk 0:00:36]}  Bxd4 {[%clk 0:01:02]} 20. hxg6 {[%clk 0:00:29]}  fxg6 {[%clk 0:01:00]} 21. Bd3 {[%clk 0:00:17]}  Bxd3 {[%clk 0:00:47]} 22. Qxd3 {[%clk 0:00:18]}  Bxb2+ {[%clk 0:00:26]} 23. Kb1 {[%clk 0:00:17]}  Rf6 {[%clk 0:00:21]} 24. Qh3 {[%clk 0:00:16]}  Rf7 {[%clk 0:00:14]} 25. Qxc8+ {[%clk 0:00:15]}  Kg7 {[%clk 0:00:14]} 26. Qh8# {[%clk 0:00:15]} 1-0


[Site "https://www.chess.com"]

[Event "Titled Tuesday Blitz July 18 Early 2023"]
[White "Romero Ruscalleda, Josep"]
[Black "Zampronha, Wladimir Camilo"]
[WhiteFideId "2231859"]
[BlackFideId "2103087"]
[WhiteElo "2381"]
[BlackElo "2276"]
[Result "0-1"]
[Round "8"]
[TimeControl "180+2"]
[Date "2023.07.18"]
[WhiteClock "0:00:06"]
[BlackClock "0:00:15"]
[Board "153"]

1. e4 {[%clk 0:03:00]}  c5 {[%clk 0:02:59]} 2. c3 {[%clk 0:03:00]}  Nf6 {[%clk 0:02:58]} 3. e5 {[%clk 0:03:00]}  Nd5 {[%clk 0:02:58]} 4. Nf3 {[%clk 0:03:00]}  e6 {[%clk 0:02:58]} 5. d4 {[%clk 0:02:59]}  cxd4 {[%clk 0:02:59]} 6. cxd4 {[%clk 0:02:59]}  b6 {[%clk 0:02:59]} 7. a3 {[%clk 0:02:59]}  Bb7 {[%clk 0:02:58]} 8. Bd2 {[%clk 0:02:58]}  d6 {[%clk 0:02:58]} 9. Nc3 {[%clk 0:02:54]}  Nxc3 {[%clk 0:02:58]} 10. Bxc3 {[%clk 0:02:54]}  Nd7 {[%clk 0:02:57]} 11. Bd3 {[%clk 0:02:51]}  Be7 {[%clk 0:02:56]} 12. O-O {[%clk 0:02:50]}  O-O {[%clk 0:02:55]} 13. Qe2 {[%clk 0:02:49]}  dxe5 {[%clk 0:02:45]} 14. dxe5 {[%clk 0:02:48]}  Nc5 {[%clk 0:02:43]} 15. Bc2 {[%clk 0:02:47]}  Ba6 {[%clk 0:02:40]} 16. Qe3 {[%clk 0:02:36]}  Bxf1 {[%clk 0:02:36]} 17. Rxf1 {[%clk 0:02:37]}  Qd5 {[%clk 0:02:17]} 18. Rd1 {[%clk 0:02:34]}  Qa2 {[%clk 0:02:03]} 19. Nd4 {[%clk 0:02:09]}  Rad8 {[%clk 0:01:54]} 20. h4 {[%clk 0:01:52]}  Rd5 {[%clk 0:01:49]} 21. Bb1 {[%clk 0:01:31]}  Qc4 {[%clk 0:01:44]} 22. Re1 {[%clk 0:01:09]}  Rfd8 {[%clk 0:01:41]} 23. Nf3 {[%clk 0:01:00]}  Rd1 {[%clk 0:01:32]} 24. Bc2 {[%clk 0:00:56]}  Rxe1+ {[%clk 0:01:31]} 25. Qxe1 {[%clk 0:00:55]}  Bxh4 {[%clk 0:01:14]} 26. g3 {[%clk 0:00:37]}  Be7 {[%clk 0:01:07]} 27. Kg2 {[%clk 0:00:36]}  g6 {[%clk 0:01:02]} 28. Qh1 {[%clk 0:00:31]}  Ne4 {[%clk 0:00:52]} 29. Qh6 {[%clk 0:00:18]}  Nxc3 {[%clk 0:00:48]} 30. bxc3 {[%clk 0:00:18]}  Qxc3 {[%clk 0:00:47]} 31. Be4 {[%clk 0:00:17]}  Qxa3 {[%clk 0:00:35]} 32. Nh4 {[%clk 0:00:17]}  Bxh4 {[%clk 0:00:34]} 33. gxh4 {[%clk 0:00:17]}  Qb4 {[%clk 0:00:23]} 34. Bf3 {[%clk 0:00:14]}  Qe7 {[%clk 0:00:21]} 35. h5 {[%clk 0:00:14]}  b5 {[%clk 0:00:19]} 36. hxg6 {[%clk 0:00:12]}  hxg6 {[%clk 0:00:17]} 37. Be4 {[%clk 0:00:10]}  b4 {[%clk 0:00:16]} 38. Bxg6 {[%clk 0:00:08]}  fxg6 {[%clk 0:00:16]} 39. Qxg6+ {[%clk 0:00:09]}  Qg7 {[%clk 0:00:15]} 40. Qxg7+ {[%clk 0:00:06]}  Kxg7 {[%clk 0:00:15]} 0-1


[Site "https://www.chess.com"]

[Event "Titled Tuesday Blitz July 18 Early 2023"]
[White "Nithyalakshmi, Sivanesan"]
[Black "Vila Dupla, Aurelio"]
[WhiteFideId "5706955"]
[BlackFideId "2203383"]
[WhiteElo "2349"]
[BlackElo "2205"]
[Result "0-1"]
[Round "8"]
[TimeControl "180+2"]
[Date "2023.07.18"]
[WhiteClock "0:00:12"]
[BlackClock "0:00:11"]
[Board "157"]

1. e4 {[%clk 0:02:59]}  c5 {[%clk 0:02:59]} 2. Nc3 {[%clk 0:02:56]}  d6 {[%clk 0:02:59]} 3. f4 {[%clk 0:02:55]}  g6 {[%clk 0:02:58]} 4. Nf3 {[%clk 0:02:54]}  Bg7 {[%clk 0:02:57]} 5. Bc4 {[%clk 0:02:29]}  Nc6 {[%clk 0:02:55]} 6. O-O {[%clk 0:02:05]}  e6 {[%clk 0:02:54]} 7. d3 {[%clk 0:02:05]}  Nge7 {[%clk 0:02:53]} 8. d4 {[%clk 0:01:58]}  Nxd4 {[%clk 0:02:49]} 9. Nxd4 {[%clk 0:01:57]}  cxd4 {[%clk 0:02:27]} 10. Ne2 {[%clk 0:01:51]}  O-O {[%clk 0:02:12]} 11. Kh1 {[%clk 0:01:45]}  d5 {[%clk 0:02:12]} 12. Bd3 {[%clk 0:01:40]}  dxe4 {[%clk 0:02:09]} 13. Bxe4 {[%clk 0:01:40]}  Qb6 {[%clk 0:02:01]} 14. Bd2 {[%clk 0:01:32]}  Bd7 {[%clk 0:01:59]} 15. Nc1 {[%clk 0:01:30]}  Bc6 {[%clk 0:01:57]} 16. Bxc6 {[%clk 0:01:26]}  Nxc6 {[%clk 0:01:48]} 17. Nd3 {[%clk 0:01:27]}  Rad8 {[%clk 0:01:44]} 18. Qf3 {[%clk 0:01:20]}  Rd5 {[%clk 0:01:42]} 19. Rae1 {[%clk 0:01:16]}  Rfd8 {[%clk 0:01:38]} 20. Qh3 {[%clk 0:01:12]}  Rh5 {[%clk 0:01:35]} 21. Qf3 {[%clk 0:01:07]}  Qa6 {[%clk 0:01:31]} 22. a3 {[%clk 0:01:05]}  Qc4 {[%clk 0:01:26]} 23. Rc1 {[%clk 0:00:55]}  Qd5 {[%clk 0:01:26]} 24. Qf2 {[%clk 0:00:51]}  a5 {[%clk 0:01:16]} 25. Kg1 {[%clk 0:00:47]}  Rf5 {[%clk 0:01:11]} 26. g4 {[%clk 0:00:43]}  Rf6 {[%clk 0:01:07]} 27. f5 {[%clk 0:00:41]}  h6 {[%clk 0:00:49]} 28. Qh4 {[%clk 0:00:24]}  g5 {[%clk 0:00:45]} 29. Qf2 {[%clk 0:00:21]}  exf5 {[%clk 0:00:45]} 30. gxf5 {[%clk 0:00:22]}  Ne7 {[%clk 0:00:36]} 31. b4 {[%clk 0:00:12]}  Nxf5 {[%clk 0:00:32]} 32. Qg2 {[%clk 0:00:11]}  Qxg2+ {[%clk 0:00:27]} 33. Kxg2 {[%clk 0:00:12]}  Nh4+ {[%clk 0:00:21]} 34. Kg3 {[%clk 0:00:11]}  Rxf1 {[%clk 0:00:20]} 35. Rxf1 {[%clk 0:00:12]}  Rc8 {[%clk 0:00:19]} 36. Rc1 {[%clk 0:00:11]}  axb4 {[%clk 0:00:18]} 37. Bxb4 {[%clk 0:00:11]}  f5 {[%clk 0:00:17]} 38. Kf2 {[%clk 0:00:09]}  Kh7 {[%clk 0:00:17]} 39. a4 {[%clk 0:00:09]}  Kg6 {[%clk 0:00:17]} 40. a5 {[%clk 0:00:09]}  h5 {[%clk 0:00:17]} 41. Nc5 {[%clk 0:00:10]}  Rc7 {[%clk 0:00:14]} 42. Nd3 {[%clk 0:00:09]}  Rc4 {[%clk 0:00:13]} 43. Rb1 {[%clk 0:00:08]}  Rxc2+ {[%clk 0:00:12]} 44. Ke1 {[%clk 0:00:09]}  Rxh2 {[%clk 0:00:12]} 45. Bc5 {[%clk 0:00:09]}  Rh1+ {[%clk 0:00:11]} 46. Kd2 {[%clk 0:00:09]}  Rxb1 {[%clk 0:00:12]} 47. Kc2 {[%clk 0:00:09]}  Ra1 {[%clk 0:00:11]} 48. Bb6 {[%clk 0:00:08]}  Ra2+ {[%clk 0:00:11]} 49. Kb3 {[%clk 0:00:09]}  Rg2 {[%clk 0:00:10]} 50. Kc4 {[%clk 0:00:10]}  f4 {[%clk 0:00:10]} 51. Kd5 {[%clk 0:00:11]}  f3 {[%clk 0:00:11]} 52. Ke4 {[%clk 0:00:11]}  f2 {[%clk 0:00:11]} 53. Nxf2 {[%clk 0:00:11]}  Rxf2 {[%clk 0:00:10]} 54. Bd8 {[%clk 0:00:11]}  Re2+ {[%clk 0:00:10]} 55. Kd3 {[%clk 0:00:12]}  Re3+ {[%clk 0:00:10]} 56. Kc4 {[%clk 0:00:13]}  Ra3 {[%clk 0:00:10]} 57. a6 {[%clk 0:00:14]}  Rxa6 {[%clk 0:00:09]} 58. Bc7 {[%clk 0:00:14]}  Rc6+ {[%clk 0:00:10]} 59. Kd5 {[%clk 0:00:12]}  Rxc7 {[%clk 0:00:11]} 0-1


[Site "https://www.chess.com"]

[Event "Titled Tuesday Blitz July 18 Early 2023"]
[White "Tqebuchava, Zurab"]
[Black "Acikel, Mert"]
[WhiteFideId "13601113"]
[BlackFideId "12956465"]
[WhiteElo "2117"]
[BlackElo "2310"]
[Result "0-1"]
[Round "8"]
[TimeControl "180+2"]
[Date "2023.07.18"]
[WhiteClock "0:00:00"]
[BlackClock "0:00:40"]
[Board "161"]

1. e4 {[%clk 0:03:00]}  e5 {[%clk 0:03:00]} 2. Nf3 {[%clk 0:03:00]}  Nc6 {[%clk 0:03:00]} 3. Bb5 {[%clk 0:03:00]}  a6 {[%clk 0:03:00]} 4. Ba4 {[%clk 0:03:00]}  Nf6 {[%clk 0:03:00]} 5. O-O {[%clk 0:03:00]}  Be7 {[%clk 0:03:01]} 6. Re1 {[%clk 0:02:59]}  b5 {[%clk 0:03:02]} 7. Bb3 {[%clk 0:02:59]}  d6 {[%clk 0:03:02]} 8. h3 {[%clk 0:02:57]}  Na5 {[%clk 0:03:01]} 9. d3 {[%clk 0:02:55]}  Nxb3 {[%clk 0:03:01]} 10. axb3 {[%clk 0:02:55]}  O-O {[%clk 0:03:02]} 11. c3 {[%clk 0:02:52]}  Bb7 {[%clk 0:02:59]} 12. Bg5 {[%clk 0:02:52]}  Re8 {[%clk 0:02:56]} 13. Bxf6 {[%clk 0:02:52]}  Bxf6 {[%clk 0:02:56]} 14. Nbd2 {[%clk 0:02:51]}  g6 {[%clk 0:02:55]} 15. Nf1 {[%clk 0:02:42]}  d5 {[%clk 0:02:53]} 16. Ng3 {[%clk 0:02:38]}  Bg7 {[%clk 0:02:48]} 17. Qe2 {[%clk 0:02:31]}  Qd6 {[%clk 0:02:46]} 18. h4 {[%clk 0:02:29]}  h5 {[%clk 0:02:40]} 19. Ng5 {[%clk 0:02:28]}  Qf6 {[%clk 0:02:30]} 20. b4 {[%clk 0:02:13]}  Qf4 {[%clk 0:02:26]} 21. Qf3 {[%clk 0:01:59]}  f6 {[%clk 0:02:03]} 22. Nh3 {[%clk 0:01:40]}  Qxh4 {[%clk 0:01:51]} 23. exd5 {[%clk 0:01:35]}  Rad8 {[%clk 0:01:50]} 24. Qe4 {[%clk 0:01:10]}  Qg4 {[%clk 0:01:41]} 25. c4 {[%clk 0:01:03]}  f5 {[%clk 0:01:36]} 26. Qxg4 {[%clk 0:00:59]}  hxg4 {[%clk 0:01:35]} 27. Ng5 {[%clk 0:00:58]}  Bc8 {[%clk 0:01:23]} 28. cxb5 {[%clk 0:00:29]}  axb5 {[%clk 0:01:21]} 29. Ra7 {[%clk 0:00:26]}  Rxd5 {[%clk 0:01:15]} 30. Rxc7 {[%clk 0:00:21]}  Rxd3 {[%clk 0:01:03]} 31. Rec1 {[%clk 0:00:19]}  Bd7 {[%clk 0:00:56]} 32. Kh2 {[%clk 0:00:11]}  Bh6 {[%clk 0:00:53]} 33. N5e4 {[%clk 0:00:06]}  fxe4 {[%clk 0:00:44]} 34. Nxe4 {[%clk 0:00:06]}  Bxc1 {[%clk 0:00:40]} 35. Nf6+ {[%clk 0:00:00]}  Kf8 {[%clk 0:00:40]} 0-1


[Site "https://www.chess.com"]

[Event "Titled Tuesday Blitz July 18 Early 2023"]
[White "ExchangeAB"]
[Black "Floresvillar Gonzalez, Luis Migu"]
[BlackFideId "5100542"]
[WhiteElo "2308"]
[BlackElo "2083"]
[Result "1-0"]
[Round "8"]
[TimeControl "180+2"]
[Date "2023.07.18"]
[WhiteClock "0:00:13"]
[BlackClock "0:00:00"]
[Board "162"]

1. d4 {[%clk 0:03:00]}  Nf6 {[%clk 0:02:54]} 2. Nc3 {[%clk 0:03:01]}  d5 {[%clk 0:02:54]} 3. Bf4 {[%clk 0:03:00]}  c6 {[%clk 0:02:51]} 4. e3 {[%clk 0:02:59]}  Bf5 {[%clk 0:02:51]} 5. f3 {[%clk 0:02:59]}  h5 {[%clk 0:02:49]} 6. Bd3 {[%clk 0:02:58]}  Bxd3 {[%clk 0:02:48]} 7. Qxd3 {[%clk 0:02:58]}  e6 {[%clk 0:02:46]} 8. e4 {[%clk 0:02:58]}  dxe4 {[%clk 0:02:45]} 9. fxe4 {[%clk 0:02:58]}  Nbd7 {[%clk 0:02:38]} 10. Nf3 {[%clk 0:02:58]}  Be7 {[%clk 0:02:35]} 11. O-O-O {[%clk 0:02:47]}  Qa5 {[%clk 0:02:25]} 12. Kb1 {[%clk 0:02:45]}  O-O-O {[%clk 0:02:22]} 13. Ng5 {[%clk 0:02:28]}  Rhf8 {[%clk 0:02:18]} 14. h4 {[%clk 0:02:23]}  e5 {[%clk 0:02:17]} 15. Bd2 {[%clk 0:01:58]}  exd4 {[%clk 0:02:14]} 16. Nd5 {[%clk 0:01:48]}  Qc5 {[%clk 0:02:13]} 17. Bb4 {[%clk 0:01:44]}  cxd5 {[%clk 0:01:14]} 18. Bxc5 {[%clk 0:01:43]}  Nxc5 {[%clk 0:01:14]} 19. Qxd4 {[%clk 0:01:41]}  Ncxe4 {[%clk 0:01:15]} 20. Nxe4 {[%clk 0:01:34]}  Nxe4 {[%clk 0:01:14]} 21. Rhf1 {[%clk 0:01:20]}  f6 {[%clk 0:00:47]} 22. Qxa7 {[%clk 0:01:19]}  Bc5 {[%clk 0:00:47]} 23. Qa8+ {[%clk 0:01:11]}  Kc7 {[%clk 0:00:47]} 24. Qa5+ {[%clk 0:01:11]}  b6 {[%clk 0:00:46]} 25. Qb5 {[%clk 0:01:08]}  Rd7 {[%clk 0:00:40]} 26. c4 {[%clk 0:00:57]}  d4 {[%clk 0:00:36]} 27. Rfe1 {[%clk 0:00:52]}  Nd6 {[%clk 0:00:27]} 28. Qb3 {[%clk 0:00:50]}  Rfd8 {[%clk 0:00:23]} 29. Qf3 {[%clk 0:00:46]}  Nxc4 {[%clk 0:00:20]} 30. Qxh5 {[%clk 0:00:39]}  Ne3 {[%clk 0:00:18]} 31. Rc1 {[%clk 0:00:36]}  Nxg2 {[%clk 0:00:17]} 32. Rg1 {[%clk 0:00:33]}  Ne3 {[%clk 0:00:16]} 33. Rxc5+ {[%clk 0:00:25]}  bxc5 {[%clk 0:00:16]} 34. Qxc5+ {[%clk 0:00:26]}  Kb7 {[%clk 0:00:16]} 35. Qb5+ {[%clk 0:00:26]}  Ka7 {[%clk 0:00:15]} 36. Rc1 {[%clk 0:00:25]}  Nd5 {[%clk 0:00:11]} 37. Rc6 {[%clk 0:00:21]}  Nc7 {[%clk 0:00:07]} 38. Qb6+ {[%clk 0:00:18]}  Ka8 {[%clk 0:00:00]} 39. Rc5 {[%clk 0:00:13]} 1-0


[Site "https://www.chess.com"]

[Event "Titled Tuesday Blitz July 18 Early 2023"]
[White "ArchibaldCerveza29"]
[Black "Guevara Sanchez, Erick Marvin"]
[BlackFideId "6700136"]
[WhiteElo "2454"]
[BlackElo "2114"]
[Result "0-1"]
[Round "8"]
[TimeControl "180+2"]
[Date "2023.07.18"]
[WhiteClock "0:00:00"]
[BlackClock "0:00:34"]
[Board "169"]

1. d4 {[%clk 0:02:55]}  Nf6 {[%clk 0:02:59]} 2. c4 {[%clk 0:02:55]}  e6 {[%clk 0:02:59]} 3. Nf3 {[%clk 0:02:51]}  Bb4+ {[%clk 0:02:58]} 4. Bd2 {[%clk 0:02:51]}  Qe7 {[%clk 0:02:56]} 5. a3 {[%clk 0:02:48]}  Bxd2+ {[%clk 0:02:55]} 6. Nbxd2 {[%clk 0:02:49]}  c5 {[%clk 0:02:55]} 7. e3 {[%clk 0:02:43]}  cxd4 {[%clk 0:02:54]} 8. exd4 {[%clk 0:02:37]}  d5 {[%clk 0:02:53]} 9. Rc1 {[%clk 0:02:32]}  O-O {[%clk 0:02:52]} 10. Bd3 {[%clk 0:02:30]}  dxc4 {[%clk 0:02:51]} 11. Nxc4 {[%clk 0:02:28]}  Nc6 {[%clk 0:02:47]} 12. O-O {[%clk 0:02:11]}  Bd7 {[%clk 0:02:45]} 13. Nce5 {[%clk 0:02:01]}  Nd5 {[%clk 0:02:35]} 14. Qc2 {[%clk 0:01:52]}  h6 {[%clk 0:02:31]} 15. Rfd1 {[%clk 0:01:43]}  Nf4 {[%clk 0:02:28]} 16. Bf1 {[%clk 0:01:39]}  Nxe5 {[%clk 0:02:13]} 17. Nxe5 {[%clk 0:01:36]}  Rac8 {[%clk 0:02:12]} 18. Qd2 {[%clk 0:01:33]}  Nd5 {[%clk 0:02:10]} 19. Rxc8 {[%clk 0:01:22]}  Rxc8 {[%clk 0:02:08]} 20. Rc1 {[%clk 0:01:22]}  Rxc1 {[%clk 0:02:08]} 21. Qxc1 {[%clk 0:01:23]}  a6 {[%clk 0:01:59]} 22. Bd3 {[%clk 0:01:06]}  Qd6 {[%clk 0:01:29]} 23. Bb1 {[%clk 0:00:39]}  Bc6 {[%clk 0:01:19]} 24. Qc2 {[%clk 0:00:32]}  Nf6 {[%clk 0:01:18]} 25. Nxc6 {[%clk 0:00:29]}  bxc6 {[%clk 0:01:17]} 26. Qd2 {[%clk 0:00:23]}  c5 {[%clk 0:01:15]} 27. b3 {[%clk 0:00:17]}  cxd4 {[%clk 0:01:13]} 28. Qc1 {[%clk 0:00:16]}  g5 {[%clk 0:01:08]} 29. Qc8+ {[%clk 0:00:15]}  Kg7 {[%clk 0:01:07]} 30. Qc4 {[%clk 0:00:14]}  Qd5 {[%clk 0:01:05]} 31. Qxa6 {[%clk 0:00:11]}  Qxb3 {[%clk 0:01:03]} 32. Qd3 {[%clk 0:00:07]}  Qxd3 {[%clk 0:01:03]} 33. Bxd3 {[%clk 0:00:08]}  Nd5 {[%clk 0:01:01]} 34. a4 {[%clk 0:00:07]}  Nb4 {[%clk 0:01:00]} 35. a5 {[%clk 0:00:05]}  Nc6 {[%clk 0:00:46]} 36. a6 {[%clk 0:00:04]}  Na7 {[%clk 0:00:46]} 37. f3 {[%clk 0:00:04]}  Kf6 {[%clk 0:00:44]} 38. Kf2 {[%clk 0:00:04]}  Ke5 {[%clk 0:00:44]} 39. Kg3 {[%clk 0:00:03]}  f5 {[%clk 0:00:44]} 40. h4 {[%clk 0:00:03]}  Kd5 {[%clk 0:00:42]} 41. hxg5 {[%clk 0:00:02]}  hxg5 {[%clk 0:00:43]} 42. f4 {[%clk 0:00:02]}  gxf4+ {[%clk 0:00:35]} 43. Kxf4 {[%clk 0:00:00]}  Nc6 {[%clk 0:00:34]} 0-1


[Site "https://www.chess.com"]